Cogmind - Beta 13 @@@ ROGUE MODE // 2024.07.04 @ 12:22:32 Player: CrossedViper Result: Destroyed by H-55 Commando with Gauss Rifle Performance ------------- Evolutions (1) 500 Regions Visited (5) 1000 Robots Destroyed (91) 455 Value Destroyed (2038) 2038 Prototype IDs (28) 560 Alien Tech Used (0) 0 Bonus (303) 303 TOTAL SCORE: 4856 Bonus ------- High Alert Combat Kills 48 Aligned with FarCom 300 Friendly Fire -45 Cogmind --------- Core Integrity 0/400 Matter 198/300 Energy 276/280 System Corruption 3% Temperature Cool (4) Movement Walking (45) Location -9/Exiles Parts ------- > --- POWER (1) -------- Heavy Ion Engine > --- PROPULSION (3) --- Improved Treads Potential Leg Potential Leg > --- UTILITY (3) ------ High-capacity Storage Unit > --- WEAPON (2) ------- (None) > --- INVENTORY (20) --- Heavy Ion Engine Improved Treads Superbattery (1500) Large Matter Pod (150) Experimental Sensor Array Peak State ------------ > --- POWER ------------ Heavy Ion Engine > --- PROPULSION ------- Improved Treads Improved Treads Improved Treads > --- UTILITY ---------- High-capacity Storage Unit Experimental Sensor Array Light Armor Plating > --- WEAPON ----------- Improved Medium Laser Improved Medium Laser > --- INVENTORY -------- Heavy Ion Engine Improved Treads Improved Treads Improved Treads Improved Treads Improved Treads Improved Treads Huge Storage Unit Transport Network Coupler Hacking Suite Heavy Assault Rifle Heavy Assault Rifle Heavy Assault Rifle Heavy Assault Rifle Bore Cannon Grenade Launcher Rocket Launcher Mini Grenade Launcher Plasma Cutter [Rating: 30] Favorites ----------- Power Heavy Ion Engine Engine Heavy Ion Engine Propulsion Improved Treads Treads Improved Treads Leg Potential Leg Utility Hacking Suite Device Cooling System Storage Large Storage Unit Processor Transport Network Coupler Hackware Hacking Suite Protection Light Armor Plating Weapon Improved Medium Laser Energy Gun Improved Medium Laser Energy Cannon Advanced Beam Cannon Ballistic Gun Assault Rifle Ballistic Cannon Bore Cannon Launcher Grenade Launcher Build | -11 -10 -10 -9 -9 -9 ------- Run | Yrd Mat Min Mat Min Exi Slots Evolved 2 | . . . 2 . . Power . | . . . . . . Propulsion 1 | . . . 1 . . Utility 1 | . . . 1 . . Weapon . | . . . . . . Parts Attached 87 | 6 14 9 37 8 13 Power 6 | 1 2 . 3 . . Engine 6 | 1 2 . 3 . . Core . | . . . . . . Reactor . | . . . . . . Propulsion 33 | 2 5 2 16 . 8 Treads 31 | 2 5 2 16 . 6 Leg 2 | . . . . . 2 Wheel . | . . . . . . Hover . | . . . . . . Flight . | . . . . . . Utility 15 | 1 3 1 5 3 2 Device 5 | . . . 4 1 . Storage 6 | 1 1 1 1 . 2 Processor 1 | . 1 . . . . Hackware 1 | . 1 . . . . Protection 2 | . . . . 2 . Artifact . | . . . . . . Weapon 33 | 2 4 6 13 5 3 Energy Gun 12 | 1 1 2 6 2 . Energy Cannon 1 | . . . 1 . . Ballistic Gun 6 | 1 . 1 1 1 2 Ballistic Cannon 5 | . 2 1 2 . . Launcher 9 | . 1 2 3 2 1 Special Weapon . | . . . . . . Impact Weapon . | . . . . . . Slashing Weapon . | . . . . . . Piercing Weapon . | . . . . . . Special Melee Weapon . | . . . . . . Unidentified Prototypes 5 | . . . 4 1 . Parts Lost 20 | . 2 4 2 1 11 Power 2 | . 2 . . . . Propulsion 9 | . . 2 1 . 6 Utility 3 | . . . . 1 2 Weapon 6 | . . 2 1 . 3 Highest Loss Streak 8 | . 2 3 1 1 8 To Critical Strikes 3 | . . . . . 3 Average Slot Usage (%) 94 | . 95 87 95 97 93 Engine 10 | . 13 7 8 11 11 Treads 29 | . 27 28 31 33 29 Device 3 | . . . 10 . . Storage 11 | . 14 12 11 11 11 Processor 1 | . 7 . . . . Hackware 6 | . 2 14 11 6 . Protection 5 | . . . . 13 18 Energy Gun 11 | . 8 5 10 21 12 Energy Cannon 1 | . . . 4 . . Ballistic Gun 5 | . 14 7 . . 6 Ballistic Cannon 3 | . 4 7 6 . . Naked Turns . | . . . . . . Heaviest Build 98 | 14 30 28 62 58 98 Greatest Support 69 | 40 40 40 69 69 69 Greatest Overweight (x) 1 | . . . . . 1 Average Overweight (x) . | . . . . . . Largest Inventory Capacity 25 | 8 15 15 20 20 25 Average Capacity 17 | 7 13 14 16 20 22 Most Carried 25 | 5 13 13 20 20 25 Average Carried 13 | 2 9 8 13 19 18 Final Capacity 20 | 8 15 15 20 20 20 Final Carried 20 | 3 12 5 20 20 5 Class Distribution -------------------- 80% | Mutant 19% | Scavenger-Mutant Dominant Class ---------------- Mutant | -10/Materials Mutant | -10/Mines Scavenger-Mutant | -9/Materials Mutant | -9/Mines Mutant | -9/Exiles Resources | -11 -10 -10 -9 -9 -9 ----------- Run | Yrd Mat Min Mat Min Exi Matter Collected 1736 | 210 420 206 709 111 80 Remotely . | . . . . . . Salvage Created 2587 | . 620 137 1599 231 . Parts 185 | . 51 9 108 17 . Haulers Intercepted 7 | . 2 . 5 . . Recyclers Shooed 1 | . . . 1 . . Parts Field Recycled . | . . . . . . Retrieved Matter . | . . . . . . Parts Self-Destructed . | . . . . . . Prevented . | . . . . . . Kills | -11 -10 -10 -9 -9 -9 ------- Run | Yrd Mat Min Mat Min Exi Combat Hostiles Destroyed 62 | . 10 8 32 10 2 Guns 23 | . 6 2 10 5 . Cannons 16 | . 4 2 10 . . AOE 23 | . . 4 12 5 2 Classes Destroyed 14 | . 7 3 4 . . Worker 4 | . 4 . . . . Builder 3 | . 2 . 1 . . Tunneler 2 | . . 1 . 1 . Hauler 7 | . 2 . 5 . . Recycler 3 | . . . 3 . . Mechanic 1 | . . . 1 . . Operator 4 | . 2 . 2 . . Watcher 8 | . 3 . 5 . . Swarmer 21 | . 3 3 11 4 . Grunt 26 | . 7 3 11 5 . Duelist 2 | . . . 1 1 . Sentry 9 | . . . 9 . . Demolisher 1 | . . 1 . . . Assembled 3 | . . 1 . . 2 Best Kill Streak 10 | . 3 3 10 3 2 Combat Bots Only 9 | . 3 3 9 3 2 Max Kills in Single Turn 3 | . 1 2 3 3 1 Gunslinging . | . . . . . . Exploded 3 | . . 2 3 3 1 Melee . | . . . . . . Uniques/NPCs Destroyed . | . . . . . . Combat | -11 -10 -10 -9 -9 -9 -------- Run | Yrd Mat Min Mat Min Exi Hostile Shots Fired 325 | . 50 27 106 17 125 Missed 98 | . 19 6 29 4 40 Damage Taken 4148 | . 469 673 998 233 1775 Core 633 | . 106 111 120 . 296 Absorbed by Shields . | . . . . . . Redirected to Shielding 16 | . . . . . 16 Regen/Repaired (Parts) 527 | . 205 . 322 . . Core Remaining (%) 56 | 100 . 13 . . . Volleys Fired 191 | . 61 13 99 11 7 Largest 2 | . 2 2 2 2 2 Hottest 124 | . 70 100 124 112 46 Shots Fired 351 | . 122 22 179 19 9 Gun 219 | . 106 9 84 16 4 Cannon 108 | . 16 8 84 . . Launcher 24 | . . 5 11 3 5 Special . | . . . . . . Kinetic 132 | . 77 14 35 2 4 Thermal 195 | . 45 3 133 14 . Explosive 24 | . . 5 11 3 5 Electromagnetic . | . . . . . . Robot Hit Streak 18 | . 10 18 11 6 1 Robot Miss Streak 5 | . 3 2 5 2 3 Penetration Max . | . . . . . . Secondary Targets . | . . . . . . Shots Hit Robots 199 | . 70 18 98 10 3 Core Hits 122 | . 32 11 57 15 7 Critical Kills 4 | . 1 . 3 . . Critical Parts Destroyed 1 | . . . 1 . . Critical Strikes 14 | . 1 3 10 . . Burn 6 | . . 1 5 . . Destroy 6 | . 1 . 5 . . Blast 2 | . . 2 . . . Melee Attacks . | . . . . . . Impact . | . . . . . . Slashing . | . . . . . . Piercing . | . . . . . . Sneak Attacks . | . . . . . . Combat Hostiles . | . . . . . . Follow-up Attacks . | . . . . . . Damage Inflicted 4749 | . 995 469 2623 491 171 Guns 2068 | . 835 113 952 135 33 Cannons 1218 | . 160 112 946 . . Explosions 1357 | . . 214 662 343 138 Melee . | . . . . . . Ramming 106 | . . 30 63 13 . Kinetic 1355 | . 681 194 418 29 33 Thermal 1931 | . 314 31 1480 106 . Explosive 1357 | . . 214 662 343 138 Electromagnetic . | . . . . . . Impact . | . . . . . . Slashing . | . . . . . . Piercing . | . . . . . . Highest Corruption 3 | . 1 1 . . 3 Average Corruption 1 | . 1 1 . . 2 Corruption Purged . | . . . . . . Corruption Blocked . | . . . . . . Effects 14 | . 3 8 . . 3 Message Errors 3 | . . 2 . . 1 Matter Fused 7 | . 2 4 . . 1 Energy Discharges 1 | . 1 . . . . Parts Rejected 1 | . . 1 . . . Misfires 1 | . . 1 . . . Alerts 1 | . . . . . 1 Overload Shots . | . . . . . . Overflow Damage 14 | . . 12 2 . . Projectiles 9 | . . 9 . . . Explosions 5 | . . 3 2 . . Melee . | . . . . . . Knockbacks 5 | . . 3 2 . . Impact 1 | . . . 1 . . Kinetic 3 | . . 2 1 . . Secondary 1 | . . 1 . . . Self-Inflicted Damage 154 | . . 45 8 84 17 Shots 6 | . . 2 1 2 1 Rammed 15 | . 1 6 7 1 . Targets Rammed 18 | . 1 7 8 2 . Kicked . | . . . . . . Crushed 3 | . . 1 1 1 . Highest Temperature 162 | . 129 78 102 162 . Average Temperature 32 | . 26 30 27 67 . Received Heat Transfer 624 | . 174 36 348 54 12 Siege Activations . | . . . . . . Robots Corrupted . | . . . . . . Combat Hostiles . | . . . . . . Parts Fried . | . . . . . . Impact Corruptions . | . . . . . . Robots Melted . | . . . . . . Combat Hostiles . | . . . . . . Parts Melted 6 | . . . 6 . . Heat Transferred 4736 | . 925 148 3441 222 . Parts Sabotaged . | . . . . . . Parts Stolen . | . . . . . . Parts Stripped . | . . . . . . Power Chain Reactions . | . . . . . . Alert | -11 -10 -10 -9 -9 -9 ------- Run | Yrd Mat Min Mat Min Exi Peak Influence 517 | . 188 221 517 274 . Initial 135 | . . 11 9 135 . Average 179 | . 62 134 279 211 . Maximum Alert Level 2 | . . 1 2 1 . Low Security (%) 57 | 100 100 49 32 32 . Level 1 35 | . . 50 49 67 . Level 2 7 | . . . 17 . . Level 3 . | . . . . . . Level 4 . | . . . . . . Level 5 . | . . . . . . High Security . | . . . . . . Max Security . | . . . . . . Squads Dispatched 12 | . 5 1 5 1 . Investigation 9 | . 3 1 4 1 . Extermination . | . . . . . . Reinforcement 3 | . 2 . 1 . . Assault . | . . . . . . Garrison . | . . . . . . Intercept . | . . . . . . Searches Triggered . | . . . . . . Construction Impeded . | . . . . . . Haulers Reinforced . | . . . . . . Active Scanning Responses . | . . . . . . Cargo Convoy Interrupts . | . . . . . . Stealth | -11 -10 -10 -9 -9 -9 --------- Run | Yrd Mat Min Mat Min Exi Distress Signals 6 | . . . 6 . . Communications Jammed . | . . . . . . Distress Signals . | . . . . . . Times Spotted 121 | . 23 19 44 13 22 Peak Tracking Total 9 | . 3 9 4 3 9 Tactical Retreats 9 | . . . 4 2 3 Traps | -11 -10 -10 -9 -9 -9 ------- Run | Yrd Mat Min Mat Min Exi Traps Triggered 5 | . 2 . 3 . . Indirectly . | . . . . . . Trap Hack Attempts . | . . . . . . Triggered . | . . . . . . Disarmed . | . . . . . . Reprogrammed . | . . . . . . Reused . | . . . . . . Traps Extracted . | . . . . . . Installed . | . . . . . . Triggered . | . . . . . . Machines | -11 -10 -10 -9 -9 -9 ---------- Run | Yrd Mat Min Mat Min Exi Machines Disabled 10 | . 1 1 4 1 3 Max in Single Turn 1 | . 1 1 1 1 1 Machines Repaired . | . . . . . . Machines Dismantled . | . . . . . . Machines Sabotaged . | . . . . . . Overloaded Fab Kills . | . . . . . . Hacking | -11 -10 -10 -9 -9 -9 --------- Run | Yrd Mat Min Mat Min Exi Machines Accessed 21 | . 9 1 8 1 2 Terminals 12 | . 6 1 4 1 . Fabricators . | . . . . . . Repair Stations 2 | . 1 . 1 . . Recycling Units 3 | . 2 . 1 . . Scanalyzers 2 | . . . 2 . . Garrison Access . | . . . . . . Total Hacks 62 | . 32 2 24 2 2 Successful 39 | . 16 . 21 . 2 Failed 23 | . 16 2 3 2 . Catastrophic 5 | . 4 1 . . . Database Lockouts . | . . . . . . Manual 39 | . 24 2 8 4 1 Terminals 35 | . 22 2 9 2 . Fabricators . | . . . . . . Repair Stations 14 | . 8 . 6 . . Recycling Units 3 | . 2 . 1 . . Scanalyzers 8 | . . . 8 . . Garrison Access . | . . . . . . Terminal Hacks 11 | . 4 . 5 . 2 Record 1 | . . . . . 1 Part Schematic 2 | . . . 2 . . Robot Analysis 5 | . 4 . 1 . . Unreport Threat 2 | . . . 2 . . Derelict Proto ID Bank 1 | . . . . . 1 Fabricator Hacks . | . . . . . . Repair Station Hacks 14 | . 8 . 6 . . Scan Component 7 | . 4 . 3 . . Repair 7 | . 4 . 3 . . Recycling Unit Hacks . | . . . . . . Scanalyzer 8 | . . . 8 . . Insert Component 4 | . . . 4 . . Analyze 4 | . . . 4 . . Garrison Access Hacks . | . . . . . . Unauthorized Hacks 6 | . 4 . 2 . . Terminals 3 | . 2 . 1 . . Track 1 | . 1 . . . . Botnet 2 | . 1 . 1 . . Fabricators . | . . . . . . Repair Stations . | . . . . . . Recycling Units 3 | . 2 . 1 . . Tunnel 3 | . 2 . 1 . . Scanalyzers . | . . . . . . Garrison Access . | . . . . . . Data Cores Recovered 1 | . . . 1 . . Used . | . . . . . . Hacking Detections 15 | . 7 1 6 1 . Full Trace Events 6 | . 3 1 1 1 . Feedback Events . | . . . . . . Feedback Blocked . | . . . . . . Robot Schematics Acquired . | . . . . . . Robots Built . | . . . . . . Authchips . | . . . . . . Time . | . . . . . . Total Robot Build Rating . | . . . . . . Part Schematics Acquired 6 | . . . 6 . . Parts Built . | . . . . . . Authchips . | . . . . . . Time . | . . . . . . Total Part Build Rating . | . . . . . . Parts Repaired 7 | . 4 . 3 . . Time 206 | . 104 . 102 . . Parts Recycled . | . . . . . . Recycled Matter . | . . . . . . Retrieved Matter . | . . . . . . Retrieved Components . | . . . . . . Parts Scanalyzed 4 | . . . 4 . . Part Schematics Acquired 4 | . . . 4 . . Parts Damaged . | . . . . . . Bothacking | -11 -10 -10 -9 -9 -9 ------------ Run | Yrd Mat Min Mat Min Exi Used RIF Installer . | . . . . . . Robots Hacked . | . . . . . . Non-combat . | . . . . . . Combat . | . . . . . . Robot Hacks Applied . | . . . . . . Relay Couplers Released . | . . . . . . Fabnet Peak Effective % . | . . . . . . Robots Rewired . | . . . . . . Allies Hacked . | . . . . . . Hacks Repelled . | . . . . . . Allies | -11 -10 -10 -9 -9 -9 -------- Run | Yrd Mat Min Mat Min Exi Total Allies . | . . . . . . Largest Group . | . . . . . . Highest-Rated Group . | . . . . . . Highest-Rated Ally . | . . . . . . Total Orders . | . . . . . . Ally Attacks . | . . . . . . Total Damage . | . . . . . . Kills . | . . . . . . Allies Corrupted . | . . . . . . Allies Melted . | . . . . . . Intel | -11 -10 -10 -9 -9 -9 ------- Run | Yrd Mat Min Mat Min Exi Robot Analysis Total 5 | . 4 . 1 . . Derelict Logs Recovered . | . . . . . . Drone Launches . | . . . . . . Drone Recoveries . | . . . . . . Exploration | -11 -10 -10 -9 -9 -9 ------------- Run | Yrd Mat Min Mat Min Exi Turns Passed 7122 | 81 1726 616 2266 648 1785 Spaces Moved 3502 | 58 874 360 978 375 857 Core 55 | 23 . 32 . . . Treads 3328 | 35 874 328 978 375 738 Legs 119 | . . . . . 119 Wheels . | . . . . . . Hover . | . . . . . . Flight . | . . . . . . Fastest Speed 45 | 50 160 50 160 160 45 Average Speed 163 | 116 160 150 160 160 183 Slowest Speed 240 | 160 160 160 160 160 240 Overloaded Moves 98 | . . . . . 98 Propulsion Burnouts . | . . . . . . Robots Hopped . | . . . . . . Cave-ins Triggered . | . . . . . . Exploration Rate (%) 67 | 4 91 50 85 82 90 Regions Visited 5 Branch Regions 3 Pre-discovered Areas 5 | . 2 . 1 1 1 Known Exits Taken . | . . . . . . Unknown Exits Taken 5 | 1 1 1 1 1 . Scrap Searched 1 | . . . . 1 . Spaces Dug 39 | . . . 29 10 . Terrain Destroyed 191 | . . 42 80 35 34 Melee . | . . . . . . Projectile 27 | . . . 27 . . AOE 164 | . . 42 53 35 34 Terrain Rammed . | . . . . . . Walls Destroyed . | . . . . . . Machines Disabled . | . . . . . . Actions | -11 -10 -10 -9 -9 -9 --------- Run | Yrd Mat Min Mat Min Exi Total 4538 | 72 1078 411 1504 401 1072 Wait 611 | . 111 13 321 3 163 Move 3497 | 57 873 359 977 374 857 Hop . | . . . . . . Pick Up 78 | 9 15 6 35 1 12 Fast Attach 15 | . 3 1 10 1 . Attach 35 | 6 5 6 7 2 9 Detach 2 | . . 1 . 1 . Swap 38 | . 6 2 21 5 4 Drop 53 | . 3 3 26 1 20 Fire 191 | . 61 13 99 11 7 Melee . | . . . . . . Ram . | . . . . . . Kick . | . . . . . . Crush 18 | . 1 7 8 2 . Escape Stasis . | . . . . . . Rewire . | . . . . . . Trap . | . . . . . . Miscellaneous . | . . . . . . Route ------- -11/Scrapyard -10/Materials (discovered 4 exits: *Mat x3 / *Min) -10/Mines -9/Materials (discovered 5 exits: [*Mat x3] / *Min x2) -9/Mines (discovered 3 exits: [*Mat] / *Exi / [*Zio]) -9/Exiles (discovered 1 exit: [*Min]) History --------- Turn | Location | Event 7 | -11/Scrapyard | Discovered new exit (range 14) 82 | -11/Scrapyard | Entered Materials 311 | -10/Materials | Build established: Mutant 430 | -10/Materials | Discovered new exit (range 11) 652 | -10/Materials | Discovered new exit (range 4) 740 | -10/Materials | Discovered new exit (range 15) 1068 | -10/Materials | Discovered new exit (range 8) 1500 | -10/Materials | Repaired Lgt. Treads 1526 | -10/Materials | Repaired Lgt. Treads 1553 | -10/Materials | Repaired Lgt. Treads 1579 | -10/Materials | Repaired Lgt. Treads 1808 | -10/Materials | Entered Mines 1868 | -10/Mines | Discovered new exit (range 5) 2114 | -10/Mines | Assembled infested the area 2119 | -10/Mines | Assisted by a Guerilla fighting off Assembled 2151 | -10/Mines | Core integrity fell below 50% 2185 | -10/Mines | Core integrity fell below 20% 2217 | -10/Mines | Lost 3 parts (2n1w) 2424 | -10/Mines | Entered Materials 2424 | -9/Materials | Evolved 2 slots: Propulsion x1, Utility x1 2785 | -9/Materials | Build established: Scavenger-Mutant 2785 | -9/Materials | Discovered new exit (range 8) 2861 | -9/Materials | Discovered new exit (range 11) 3029 | -9/Materials | Destroyed 9 combat bots 3047 | -9/Materials | Discovered new exit (range 16) 3152 | -9/Materials | Repaired Bore Cannon 3179 | -9/Materials | Repaired Lgt. Treads 3206 | -9/Materials | Repaired Lgt. Treads 3594 | -9/Materials | Discovered new exit (range 16) 4125 | -9/Materials | Build established: Mutant 4559 | -9/Materials | Discovered new exit (range 14) 4690 | -9/Materials | Entered Mines 4717 | -9/Mines | Met a Derelict bent on vengeance 5024 | -9/Mines | A Derelict revealed a hidden shortcut to a safe place 5083 | -9/Mines | Found a damaged Exp. Sensor Array with a note attached 5086 | -9/Mines | Found Prototype Device 5088 | -9/Mines | Identified Exp. Sensor Array 5322 | -9/Mines | Discovered new exit (range 11) 5332 | -9/Mines | Deemed a non-threat by the Exiles lab entrance 5332 | -9/Mines | Discovered new exit (range 5) 5338 | -9/Mines | Entered Exiles 5425 | -9/Exiles | Met 8R-AWN 5463 | -9/Exiles | Met EX-HEX 5559 | -9/Exiles | Met EX-DEC 5569 | -9/Exiles | Learned location of Zion (-7) 5663 | -9/Exiles | Visited The Gauntlet 6194 | -9/Exiles | Discovered new exit (range 14) 6496 | -9/Exiles | Met EX-BIN 6670 | -9/Exiles | Aligned with FarCom system 6672 | -9/Exiles | Given EX-Vault access code 6708 | -9/Exiles | Opened EX-Vault 6721 | -9/Exiles | Found Superbattery 6724 | -9/Exiles | Found Potential Leg 6726 | -9/Exiles | Found Potential Leg 6759 | -9/Exiles | Warned to stay clear of 0b10 Research branches 6776 | -9/Exiles | Exiles lab attacked by MAIN.C 6832 | -9/Exiles | Attacked by the Exiles 6862 | -9/Exiles | Core integrity fell below 50% 6870 | -9/Exiles | Core integrity fell below 20% 6900 | -9/Exiles | Lost 8 parts (4n2u2w) 7123 | -9/Exiles | Destroyed by H-55 Commando with Gauss Rifle Last Messages --------------- 06942_ Critical hit (Destroy). 06942_ Rocket Launcher destroyed. 06942_ HV Slug penetrates Machine. 06942_ Penetrated by HV Slug. 06942_ HV Slug penetrates Machine. 06947_ HV Slug penetrates G-34 Mercenary. 06947_ G-34 Mercenary suffers critical hit (Destroy). 06947_ G-34 Mercenary destroyed. 06976_ System corrupted: IFF burst signal emitted. 07113_ Penetrated by Slug. 07113_ DEC's Workstation disabled. 07114_ Penetrated by Slug. 07117_ Slug penetrates Machine. 07117_ Machine disabled. 07117_ Penetrated by Slug. 07120_ Imp. Treads destroyed. 07120_ FarCom Aligner disabled. 07120_ Penetrated by Slug. Map ----- +----------------------------------------------------+ | ???????????????????????# ## """????????????? | | ???????????????????????# X""????????????? | | ???????????????????????# ## """????????????? | | ???????????????######### #??"""""????????????? | | ???????????????#""""""## #???#?#?????????????? | | ???????????????#"""" ## #???????????????????? | | ???????????????#""X" #???????????????????? | | ???????????????# #???????????????????? | | ???????????????#" ## #???????????????????? | | ???????????????#""""""## #?#########?????????? | | ???????????????##"###### #?#"""""""#?????????? | | ??????????????? ??????# #?#"""""""#?????????? | | ??????????????""???????# #?#""" """#?????????? | | ??????????????????????## ###"" """"#?????????? | | ??????????????????????#" """"#?????????? | | ??????????????????????#" """#?????????? | | ??????????????????????# """#?????????? | | ??????????????????????# """#?????????? | | ???????########???????#" """#?????????? | | ???????# """#???????#" """#?????????? | | ???????#"" """#???????## """"?????????? | | ???????#"" #????????# """#?????????? | | ???????#"" #????????# h "X" """"?????????? | | ???????#"" "#????????#" """ #?????????? | | ???????# ""#????????#" """""""""#?????????? | | ???????#"" " #???????##"@ ###########?????????? | | ???????### ###??????##" #???????????????????? | | ####???### "##?######" #???????????????????? | | " "##### # # ###""" ##??????????????????? | | """"" " ##???#########?????? | | % "" " " #####"""""""""##??? | | " !g[ """ """"##?? | | % =* "" " #?? | | %[ %% " """#?? | | %*=% " "#?? | | # % =![%p " "##? | | ##" != h %=[%=% ""## | | ?#"" !%="""""" """ | | ##" ######""" gg " | | #"" ""##????#####""" | | #""" " "##?????????##""" | | """ "" ##???????????#"""" | | """ % ""#????????????#"" | | "" ########???###"""" | | """ ## ####""" | | "" """" | | #"" | | #"""" | | ## " | | ?#" " "" """ " | +----------------------------------------------------+ Best States ------------- Heat Dissipation 50 Energy Generation 14 Energy Capacity 280 Matter Stores 300 Matter Capacity 300 Sight Range 16 Terrain Scan Density 10 Armor Coverage 150 Core Shielding 20 Evasion (%) 66 Recoil Reduction 3 Offensive Hacking 10 Item Schematics ----------------- Lgt. Treads | -9/Materials | Scanalyzed Transport Network Coupler | -9/Materials | Scanalyzed Huge Storage Unit | -9/Materials | Scanalyzed Plasma Cutter | -9/Materials | Scanalyzed Structural Scanner | -9/Materials | Hacked Lgt. Ion Engine | -9/Materials | Hacked Robot Schematics ------------------ None Fabricated ------------ Nothing Alien Tech Used ----------------- None Achievements -------------- None Challenges ------------ None Game ------ Seed FissionChromaticMatrix Manual? 0 Play Time 00:34:22 Cumulative 826.8 hours Start 2024.07.04 @ 11:46:45 End 2024.07.04 @ 12:22:32 Sessions 1 Manual Loads 0 Difficulty Rogue Special Mode None Game No. 521 Rogue 514 Adventurer 0 Explorer 7 Win Type - Total 55 Types 20/5/19/2/0/1/6/1/1 Lore% 90 Gallery% 97 Achievement% 84 Wizard Run 0 Options --------- Layout 2 ASCII 0 Keyboard 0 Movement Numpad Keybinds 0 Fullscreen 1 Font 24/Tamsyn Map View 50x44 Zoom Use 0% Tactical HUD 1 Map Filters NONE Filters NONE Steam 1 RUN: 5c0b59e0-0d90-474c-a726-6177d7c885da